Cogmind - Beta 16 --- EXPLORER MODE // 2025.11.20 @ 07:55:58 Player: K.K.Y. Result: Destroyed by 7W-ECT(R) with Subdweller Laser Performance ------------- Evolutions (0) 0 Regions Visited (3) 600 Robots Destroyed (30) 150 Value Destroyed (838) 838 Prototype IDs (1) 20 Alien Tech Used (0) 0 Bonus (0) 0 TOTAL SCORE: 1608 Bonus ------- None Cogmind --------- Core Integrity 0/250 Matter 219/300 Energy 100/100 System Corruption 1% Temperature Cool (6) Movement Walking (190) Ox1 Location -10/Subcaves Parts ------- > --- POWER (1) -------- (None) > --- PROPULSION (3) --- Aluminum Leg > --- UTILITY (2) ------ Medium Storage Unit > --- WEAPON (2) ------- Improved Assault Rifle Improved Assault Rifle > --- INVENTORY (10) --- High-capacity Matter Pod (200) Signal Interpreter Transport Network Coupler Scrap Shield Improved Assault Rifle Mining Laser Multitool Peak State ------------ > --- POWER ------------ Light Ion Engine > --- PROPULSION ------- Aluminum Leg Aluminum Leg Aluminum Leg > --- UTILITY ---------- Medium Storage Unit Medium Armor Plating > --- WEAPON ----------- Improved Assault Rifle Improved Assault Rifle > --- INVENTORY -------- Signal Interpreter Medium Armor Plating Medium Armor Plating Medium Armor Plating Improved Assault Rifle [Rating: 14] Favorites ----------- Power Ion Engine Engine Ion Engine Propulsion Aluminum Leg Leg Aluminum Leg Utility Medium Storage Unit Storage Medium Storage Unit Protection Medium Armor Plating Weapon Improved Assault Rifle Ballistic Gun Improved Assault Rifle Build | -11 -10 -10 -10 ------- Run | Yrd Mat Min Sub Slots Evolved 1 | . 1 . . Power . | . . . . Propulsion 1 | . 1 . . Utility . | . . . . Weapon . | . . . . Parts Attached 20 | 1 16 . 3 Power 2 | . 2 . . Engine 2 | . 2 . . Core . | . . . . Reactor . | . . . . Propulsion 8 | . 8 . . Treads . | . . . . Leg 8 | . 8 . . Wheel . | . . . . Hover . | . . . . Flight . | . . . . Utility 5 | . 3 . 2 Device . | . . . . Storage 1 | . 1 . . Processor . | . . . . Hackware . | . . . . Protection 4 | . 2 . 2 Artifact . | . . . . Weapon 5 | 1 3 . 1 Energy Gun . | . . . . Energy Cannon . | . . . . Ballistic Gun 5 | 1 3 . 1 Ballistic Cannon . | . . . . Launcher . | . . . . Special Weapon . | . . . . Impact Weapon . | . . . . Slashing Weapon . | . . . . Piercing Weapon . | . . . . Special Melee Weapon . | . . . . Unidentified Prototypes 1 | . 1 . . Parts Lost 6 | . . . 6 Power 1 | . . . 1 Propulsion 2 | . . . 2 Utility 2 | . . . 2 Weapon 1 | . . . 1 Highest Loss Streak 5 | . . . 5 To Critical Strikes 1 | . . . 1 Average Backups 8 | 2 7 9 9 Power . | . . . . Propulsion . | 1 . 1 . Utility 4 | . 4 5 4 Weapon 2 | . 1 3 2 Tool/Special . | . . . . Unused Backups 10 | . 2 . 8 Power . | . . . . Propulsion . | . . . . Utility 7 | . 2 . 5 Weapon 2 | . . . 2 Tool/Special 1 | . . . 1 Average Slot Usage (%) 97 | . 93 100 97 Engine 11 | . 11 12 11 Leg 36 | . 36 37 35 Storage 11 | . 10 12 12 Protection 11 | . 11 12 11 Ballistic Gun 24 | . 22 25 25 Peak Build Rating 14 | 1 14 14 14 Average Rating 13 | . 12 14 13 On Entrance 7 | . 1 14 14 Avg Prop Armor Cover (%) . | . . . . Naked Turns 1 | . 1 . . Heaviest Build 28 | 2 28 28 28 Greatest Support 30 | 3 30 30 30 Greatest Overweight (x) 1 | . . . 1 Average Overweight (x) . | . . . . Largest Inventory Capacity 10 | 5 10 10 10 Average Capacity 9 | 5 9 10 10 Most Carried 10 | 5 10 10 10 Average Carried 8 | 3 7 9 9 Final Capacity 10 | 5 10 10 10 Final Carried 10 | 5 9 10 8 Class Distribution -------------------- 100% | Hacker-Mutant Dominant Class ---------------- Hacker-Mutant | -10/Materials Hacker-Mutant | -10/Mines Hacker-Mutant | -10/Subcaves Resources | -11 -10 -10 -10 ----------- Run | Yrd Mat Min Sub Matter Collected 828 | 151 473 42 162 Remotely . | . . . . Salvage Created 1127 | . 624 . 503 Parts 66 | . 40 . 26 Haulers Intercepted 2 | . 2 . . Recyclers Shooed . | . . . . Parts Field Recycled . | . . . . Retrieved Matter . | . . . . Parts Self-Destructed . | . . . . Prevented . | . . . . Parts Restored . | . . . . Kills | -11 -10 -10 -10 ------- Run | Yrd Mat Min Sub Combat Hostiles Destroyed 24 | . 14 . 10 Guns 24 | . 14 . 10 Classes Destroyed 7 | . 6 . 1 Worker 1 | . 1 . . Tunneler 1 | . 1 . . Hauler 2 | . 2 . . Watcher 2 | . 2 . . Swarmer 4 | . 4 . . Grunt 12 | . 10 . 2 Subdweller 8 | . . . 8 Best Kill Streak 6 | . 6 . 2 Combat Bots Only 6 | . 6 . 2 Max Kills in Single Turn 2 | . 2 . 1 Gunslinging . | . . . . Exploded . | . . . . Melee . | . . . . Uniques/NPCs Destroyed . | . . . . Combat | -11 -10 -10 -10 -------- Run | Yrd Mat Min Sub Hostile Shots Fired 158 | . 57 6 95 Missed 37 | . 17 1 19 Hits 121 | . 40 5 76 Projectile 121 | . 40 5 76 AOE 6 | . . 6 . Critical Strikes 4 | . 1 . 3 Damage Taken 1442 | . 267 126 1049 Core 255 | . 25 20 210 Absorbed by Shields . | . . . . Ignored by Resistances 874 | . 176 76 622 Core Remaining (%) 100 | 100 . . . Volleys Fired 82 | . 39 4 39 Largest 2 | . 2 2 2 Hottest 46 | . 46 46 46 Shots Fired 163 | . 78 9 76 Gun 163 | . 78 9 76 Cannon . | . . . . Launcher . | . . . . Special . | . . . . Kinetic 163 | . 78 9 76 Thermal . | . . . . Explosive . | . . . . Electromagnetic . | . . . . Robot Hit Streak 44 | . 23 31 44 Robot Miss Streak 2 | . 2 . 1 Penetration Max . | . . . . Secondary Targets 3 | . 2 . 1 Max Gunslinging Chain 1 | . 1 . 1 Shots Hit Robots 136 | . 59 8 69 Core Hits 49 | . 26 3 20 Critical Kills 1 | . 1 . . Critical Parts Destroyed 1 | . 1 . . Critical Strikes 2 | . 2 . . Destroy 2 | . 2 . . Melee Attacks . | . . . . Impact . | . . . . Slashing . | . . . . Piercing . | . . . . Sneak Attacks . | . . . . Combat Hostiles . | . . . . Follow-up Attacks . | . . . . Damage Inflicted 2125 | . 958 137 1030 Guns 2114 | . 958 126 1030 Cannons . | . . . . Explosions . | . . . . Melee . | . . . . Ramming 11 | . . 11 . Kinetic 2114 | . 958 126 1030 Thermal . | . . . . Explosive . | . . . . Electromagnetic . | . . . . Impact . | . . . . Slashing . | . . . . Piercing . | . . . . Highest Corruption 1 | . 1 1 1 Average Corruption 1 | . 1 1 1 Corruption Purged . | . . . . Corruption Blocked . | . . . . Effects 20 | . 3 8 9 Message Errors 4 | . 1 . 3 Matter Fused 3 | . . 3 . Heat Flow Errors 1 | . . 1 . Energy Discharges 5 | . 1 . 4 Data Loss (minor) 2 | . . 2 . Data Loss (major) 2 | . . 1 1 Misfires 2 | . 1 1 . Weapon Failures 1 | . . . 1 Overload Shots . | . . . . Overflow Damage . | . . . . Projectiles . | . . . . Explosions . | . . . . Melee . | . . . . Knockbacks . | . . . . Impact . | . . . . Kinetic . | . . . . Secondary . | . . . . Self-Inflicted Damage . | . . . . Shots . | . . . . Rammed . | . . . . Targets Rammed 2 | . . 2 . Kicked 2 | . . 2 . Crushed . | . . . . Highest Temperature 254 | . 53 254 5 Average Temperature 42 | . 13 131 5 Received Heat Transfer 504 | . 201 . 303 Siege Activations . | . . . . Martial Activations . | . . . . Shielding Activations . | . . . . Robots Disrupted . | . . . . Combat Hostiles . | . . . . Robots Corrupted . | . . . . Combat Hostiles . | . . . . Parts Fried . | . . . . Impact Corruptions . | . . . . Robots Melted . | . . . . Combat Hostiles . | . . . . Parts Melted . | . . . . Heat Transferred . | . . . . Parts Sabotaged . | . . . . Parts Stolen . | . . . . Parts Stripped . | . . . . Power Chain Reactions . | . . . . Alert | -11 -10 -10 -10 ------- Run | Yrd Mat Min Sub Maximum Alert Level . | . . . . Low Security (%) 100 | 100 100 100 . Level 1 . | . . . . Level 2 . | . . . . Level 3 . | . . . . Level 4 . | . . . . Level 5 . | . . . . High Security . | . . . . Max Security . | . . . . Peak Influence 151 | . 151 14 . Initial 14 | . . 14 . Average 21 | . 42 . . Influence Increases 538 | . 473 . 65 Destroy 0b10 Robot/C 320 | . 280 . 40 Destroy 0b10 Robot/NC 30 | . 30 . . Destroy Leader 78 | . 68 . 10 Trap Triggered on 0b10 20 | . 20 . . Successful Hack 28 | . 28 . . Destroy Structure 2 | . 2 . . Lose Combat Pursuer 60 | . 45 . 15 Influence Decreases 538 | . 420 53 65 Entered New Map 39 | . . 39 . Time Decay 487 | . 408 14 65 Purge Threat 12 | . 12 . . Squads Dispatched 4 | . 4 . . Investigation 4 | . 4 . . Extermination . | . . . . Reinforcement . | . . . . Assault . | . . . . Garrison . | . . . . Intercept . | . . . . Searches Triggered . | . . . . Construction Impeded . | . . . . Haulers Reinforced . | . . . . Active Scanning Responses . | . . . . Cargo Convoy Interrupts . | . . . . Stealth | -11 -10 -10 -10 --------- Run | Yrd Mat Min Sub Distress Signals . | . . . . Communications Jammed . | . . . . Distress Signals . | . . . . Times Spotted 33 | . 20 2 11 Peak Tracking Total 5 | . 5 1 3 Tactical Retreats 2 | . 1 . 1 Traps | -11 -10 -10 -10 ------- Run | Yrd Mat Min Sub Traps Triggered 2 | . 1 . 1 Indirectly . | . . . . Trap Hack Attempts . | . . . . Triggered . | . . . . Disarmed . | . . . . Reprogrammed 6 | . 6 . . Reused 2 | . 2 . . Traps Extracted . | . . . . Installed . | . . . . Triggered 2 | . 2 . . Machines | -11 -10 -10 -10 ---------- Run | Yrd Mat Min Sub Machines Disabled . | . . . . Max in Single Turn . | . . . . Machines Repaired . | . . . . Machines Dismantled . | . . . . Machines Sabotaged . | . . . . Overloaded Fab Kills . | . . . . Hacking | -11 -10 -10 -10 --------- Run | Yrd Mat Min Sub Machines Accessed 6 | . 6 . . Terminals 6 | . 6 . . Fabricators . | . . . . Repair Stations . | . . . . Recycling Units . | . . . . Scanalyzers . | . . . . Garrison Access . | . . . . Total Hacks 21 | . 21 . . Successful 15 | . 15 . . Failed 6 | . 6 . . Catastrophic . | . . . . Database Lockouts . | . . . . Manual 2 | . 2 . . Terminals 21 | . 21 . . Fabricators . | . . . . Repair Stations . | . . . . Recycling Units . | . . . . Scanalyzers . | . . . . Garrison Access . | . . . . Terminal Hacks 15 | . 15 . . Branch Access Points 1 | . 1 . . Emergency Access Points 2 | . 2 . . Machine Index 1 | . 1 . . Unreport Threat 1 | . 1 . . Locate Traps 1 | . 1 . . Reprogram Traps 1 | . 1 . . Maintenance Status 1 | . 1 . . Surveillance Status 1 | . 1 . . Investigation Status 1 | . 1 . . Recall Investigation 1 | . 1 . . Hauler Manifests 1 | . 1 . . Registered Components 1 | . 1 . . Zone Layout 2 | . 2 . . Fabricator Hacks . | . . . . Repair Station Hacks . | . . . . Recycling Unit Hacks . | . . . . Scanalyzer . | . . . . Garrison Access Hacks . | . . . . Unauthorized Hacks . | . . . . Terminals . | . . . . Fabricators . | . . . . Repair Stations . | . . . . Recycling Units . | . . . . Scanalyzers . | . . . . Garrison Access . | . . . . Data Cores Recovered . | . . . . Used . | . . . . Hacking Detections 5 | . 5 . . Full Trace Events 5 | . 5 . . Feedback Events . | . . . . Feedback Blocked . | . . . . Robot Schematics Acquired . | . . . . Robots Built . | . . . . Authchips . | . . . . Time . | . . . . Total Robot Build Rating . | . . . . Part Schematics Acquired . | . . . . Parts Built . | . . . . Authchips . | . . . . Time . | . . . . Total Part Build Rating . | . . . . Part Studies Acquired . | . . . . Parts Repaired . | . . . . Time . | . . . . Parts Recycled . | . . . . Recycled Matter . | . . . . Retrieved Matter . | . . . . Retrieved Components . | . . . . Parts Scanalyzed . | . . . . Part Schematics Acquired . | . . . . Parts Damaged . | . . . . Bothacking | -11 -10 -10 -10 ------------ Run | Yrd Mat Min Sub Used RIF Installer . | . . . . Robots Hacked . | . . . . Non-combat . | . . . . Combat . | . . . . Robot Hacks Applied . | . . . . Relay Couplers Released . | . . . . Fabnet Peak Effective % . | . . . . Robots Rewired . | . . . . Allies Hacked . | . . . . Hacks Repelled . | . . . . Allies | -11 -10 -10 -10 -------- Run | Yrd Mat Min Sub Total Allies . | . . . . Largest Group . | . . . . Highest-Rated Group . | . . . . Highest-Rated Ally . | . . . . Total Orders . | . . . . Ally Attacks . | . . . . Total Damage . | . . . . Kills . | . . . . Allies Corrupted . | . . . . Allies Melted . | . . . . Intel | -11 -10 -10 -10 ------- Run | Yrd Mat Min Sub Active Infowar (turns) . | . . . . Robot Analysis Total . | . . . . Derelict Logs Recovered 1 | . . . 1 Drone Launches . | . . . . Drone Recoveries . | . . . . Exploration | -11 -10 -10 -10 ------------- Run | Yrd Mat Min Sub Turns Passed 2595 | 29 836 812 918 Spaces Moved 1866 | 45 556 618 647 Core 58 | 45 13 . . Treads . | . . . . Legs 1808 | . 543 618 647 Wheels . | . . . . Hover . | . . . . Flight . | . . . . Fastest Speed 50 | 50 50 120 120 Average Speed 118 | 50 118 120 122 Slowest Speed 190 | 50 120 120 190 Overloaded Moves . | . . . . Propulsion Burnouts . | . . . . Robots Hopped . | . . . . Potential Cave-ins . | . . . . Cave-ins Triggered . | . . . . Exploration Rate (%) 54 | 3 72 99 43 Regions Visited 3 Branch Regions 2 Pre-discovered Areas 1 | . . . 1 Known Exits Taken 3 | 1 1 1 . Unknown Exits Taken . | . . . . Scrap Searched 4 | . . 1 3 Spaces Dug . | . . . . Terrain Destroyed . | . . . . Melee . | . . . . Projectile . | . . . . AOE . | . . . . Terrain Rammed . | . . . . Walls Destroyed . | . . . . Machines Disabled . | . . . . Actions | -11 -10 -10 -10 --------- Run | Yrd Mat Min Sub Total 2089 | 50 660 680 699 Wait 77 | . 18 56 3 Move 1863 | 44 555 617 647 Hop . | . . . . Pick Up 25 | 5 16 1 3 Fast Attach 6 | 1 5 . . Attach 9 | . 7 . 2 Detach 2 | . 2 . . Swap 7 | . 6 . 1 Drop 16 | . 12 . 4 Fire 82 | . 39 4 39 Melee . | . . . . Ram . | . . . . Kick 2 | . . 2 . Crush . | . . . . Escape Stasis . | . . . . Rewire . | . . . . Trap . | . . . . Miscellaneous . | . . . . Route ------- -11/Scrapyard -10/Materials (discovered 4 exits: *Mat x2 / *Min x2) -10/Mines (discovered 3 exits: *Mat x2 / *Sub) -10/Subcaves (discovered 1 exit: *Mat) History --------- Turn | Location | Event 6 | -11/Scrapyard | Identified exit to Materials 6 | -11/Scrapyard | Discovered exit to Materials (range 15) 30 | -11/Scrapyard | Entered Materials 30 | -10/Materials | Evolved 1 slot: Propulsion x1 62 | -10/Materials | Identified exit to Mines 313 | -10/Materials | Build established: Hacker-Mutant 314 | -10/Materials | Identified exit to Materials 314 | -10/Materials | Discovered exit to Materials (range 15) 465 | -10/Materials | Discovered exit to Materials (range 14) 866 | -10/Materials | Entered Mines 950 | -10/Mines | Discovered exit to Materials (range 10) 1154 | -10/Mines | Assembled infested the area 1159 | -10/Mines | Assisted by a Guerilla fighting off Assembled 1244 | -10/Mines | Discovered exit to Materials (range 8) 1661 | -10/Mines | Identified exit to Subcaves 1661 | -10/Mines | Discovered exit to Subcaves (range 15) 1678 | -10/Mines | Entered Subcaves 1690 | -10/Subcaves | Shifting Twisted Machinery released Multitool 1694 | -10/Subcaves | Shifting Twisted Machinery released Sub. Machine Gun 2126 | -10/Subcaves | Learned location of Zion (-6) 2329 | -10/Subcaves | Identified exit to Materials 2329 | -10/Subcaves | Discovered exit to Materials (range 9) 2548 | -10/Subcaves | A Subdweller sparked back to life 2548 | -10/Subcaves | A Subdweller sparked back to life 2548 | -10/Subcaves | A Subdweller sparked back to life 2558 | -10/Subcaves | Core integrity fell below 50% 2582 | -10/Subcaves | Core integrity fell below 20% 2596 | -10/Subcaves | Destroyed by 7W-ECT(R) with Subdweller Laser Last Messages --------------- 02513_ Triggered Shrapnel Trap. 02513_ An expanding cloud of shrapnel blasts out in all directions. 02513_ Aluminum Leg destroyed. 02548_ CF-YX4(R) creaks and sparks as it begins to move. 02548_ 7W-ECT(R) creaks and sparks as it begins to move. 02548_ IJ-Z82(R) creaks and sparks as it begins to move. 02549_ Med. Armor Plating destroyed. 02553_ Ion Engine destroyed. 02554_ Critical hit (Destroy). 02554_ Imp. Assault Rifle destroyed. 02570_ Aluminum Leg destroyed. 02574_ CF-YX4(R) destroyed. 02579_ Med. Armor Plating destroyed. 02587_ IJ-Z82(R) affixes Scrap Shield Fragment to Scrap Shield. 02594_ IJ-Z82(R) destroyed. Map ----- +----------------------------------------------------+ | ?????????????????????????????????????????????????? | | ?????????????????????????????????????????????????? | | ?????????????????????????????????????????????????? | | ?????????????????????????????????????????????????? | | ?????????????????????????????????????????????????? | | ?????????????????????????????????????????????????? | | ?????????????????????????????????????????????????? | | ?????????????????????????????????????????????????? | | ?????????????????????????????????????????????????? | | ?????????????????????????????????????????????????? | | ?????????????????????????????????????????????????? | | ?????????????????????????????????????????????????? | | ?????????????????????????????????????????????????? | | ????????????????????????????????????????? ##?????? | | ????????????????????????????????????????? #?????? | | ???????????????????????????????????????? #?????? | | ????????????????????????????????######## #?????? | | ???????????????????????????????## #?????? | | ???????????????????????????????# #??????? | | ????????????????????????????????# #???????? | | ??????????????????????????###???# ##??????? | | ???????????########??????## ##### #??????? | | ???????????# # # ######## # # ####??????? | | ???????????## ## #?????????? | | ???????????# &## ##????????? | | ???????????## # ## @=## #### #????????? | | ???????????# #########&&%]&##?# #####??##????? | | ???????????# #??###?# *R<<#??# ##??### #????? | | ?????????### ##?## ?# !=